[Event "Khanty-Mansiysk FIDE GP (Women)"]
[Site "Khanty-Mansiysk"]
[Date "2014.04.09"]
[Round "1"]
[White "Ushenina, Anna"]
[Black "Muminova, Nafisa"]
[Result "1-0"]
[ECO "E49"]
[WhiteElo "2501"]
[BlackElo "2321"]
[Annotator "ChessBase Website"]
[PlyCount "95"]
[EventDate "2014.04.09"]
[EventType "tourn"]
[EventRounds "11"]
[EventCountry "RUS"]
[EventCategory "10"]
[SourceTitle "CBM 160"]
[Source "ChessBase"]
[SourceDate "2014.05.15"]
[SourceVersion "1"]
[SourceVersionDate "2014.05.15"]
[SourceQuality "1"]
[TimeControl "40/5400+30:1800+30"]
[WhiteClock "1:30:00"]
[BlackClock "1:30:00"]

1. d4 {[%emt 0:00:00]} Nf6 {[%emt 0:00:00]} 2. c4 {[%emt 0:00:00]} e6 {[%emt 0:
00:00]} 3. Nc3 {[%emt 0:00:11]} Bb4 {[%emt 0:00:00]} 4. e3 {[%emt 0:00:03]} O-O
{[%emt 0:00:09]} 5. Bd3 {[%emt 0:00:43]} d5 {[%emt 0:00:12]} 6. a3 {[%emt 0:01:
59]} Bxc3+ {[%emt 0:03:01]} 7. bxc3 {[%emt 0:00:02]} c5 {[%emt 0:02:36]} 8.
cxd5 {[%emt 0:00:25]} exd5 {[%emt 0:01:06]} 9. f3 {[%emt 0:03:10]} b6 {[%emt 0:
04:49]} 10. Ne2 {[%emt 0:00:11]} Ba6 {[%emt 0:02:56]} 11. O-O {[%emt 0:00:09]}
Re8 {[%emt 0:03:09]} 12. Ng3 {[%emt 0:00:54]} Bxd3 {[%emt 0:04:59]} 13. Qxd3 {
[%emt 0:00:02]} Nc6 {[%emt 0:00:16]} 14. Bb2 {[%emt 0:00:28]} c4 {[%emt 0:10:
21]} 15. Qd2 {[%emt 0:00:53]} (15. Qe2 h5 16. Rae1 Ne7 17. e4 h4 18. Nh1 Ng6
19. Nf2 Nh5 {1/2-1/2 (19) Rakhmanov,A (2603)-Gonzalez Vidal,Y (2523) Panama
City 2013}) 15... b5 {[%emt 0:04:53]} 16. Rae1 {[%emt 0:02:52]} a5 {[%emt 0:01:
00]} 17. Qf2 $146 {[%emt 0:42:00]} (17. e4 Qb6 18. Kh1 b4 19. e5 Nd7 20. f4
bxc3 21. Bxc3 Qb3 22. Ra1 Rab8 23. f5 f6 24. Nh5 fxe5 25. dxe5 Ndxe5 26. Qg5
Qb7 27. Nf6+ Kh8 28. Nxe8 Rxe8 29. Rae1 d4 30. Bxd4 h6 31. Qh5 Qb8 32. Bc3 Kh7
33. f6 Ng6 34. fxg7 Rxe1 35. Rxe1 Nce7 36. Qxa5 Qb7 37. Qb4 Qc7 38. Qb5 {
1-0 (38) Yakovich,Y (2549)-Frolochkin,V (2331) St Petersburg 2011}) 17... b4 {
[%emt 0:08:41]} 18. e4 {[%emt 0:00:56]} Rb8 {[%emt 0:00:33]} 19. e5 {[%emt 0:
05:53]} Nd7 {[%emt 0:01:46]} 20. f4 {[%emt 0:05:06]} bxc3 {[%emt 0:02:32]} 21.
Bxc3 {[%emt 0:00:31]} Rb3 {[%emt 0:00:16]} 22. Re3 {[%emt 0:13:07]} Nc5 23.
dxc5 {[%emt 0:01:01]} d4 {[%emt 0:08:07]} 24. Bxd4 {[%emt 0:04:33]} Qxd4 {
[%emt 0:00:24]} 25. Nf5 {[%emt 0:01:48]} Qxc5 {[%emt 0:02:03]} 26. Rg3 {
[%emt 0:02:27]} Qxf2+ {[%emt 0:01:51]} 27. Rxf2 {[%emt 0:00:15]} Rxg3 {[%emt 0:
07:53]} 28. hxg3 {[%emt 0:00:07]} Rb8 {[%emt 0:08:54] Muminova's opening was
good and she had adequate counterplay. She made some strange decisions and
ended in a rook endgame down a pawn, but it was possible that she adequate
resources to draw the game. Unfortunately for her she missed some key White
pawn advances and she found herself helpless against Ushenina's passed e-pawn.}
29. Rc2 {[%emt 0:01:31]} g6 {[%emt 0:00:46]} 30. Nd6 {[%emt 0:02:09]} Nd4 {
[%emt 0:01:52]} 31. Rxc4 {[%emt 0:00:43]} Nb5 {[%emt 0:00:16]} 32. Nxb5 {
[%emt 0:05:33]} Rxb5 {[%emt 0:00:07]} 33. Rc8+ {[%emt 0:00:08]} Kg7 {[%emt 0:
00:05]} 34. Ra8 {[%emt 0:00:02]} g5 {[%emt 0:02:45]} 35. Ra7 {[%emt 0:02:30]}
Kg6 {[%emt 0:00:12]} 36. Ra6+ {[%emt 0:00:17]} Kg7 {[%emt 0:02:32]} 37. Kh2 {
[%emt 0:04:55]} Rc5 {[%emt 0:01:22]} 38. Ra7 {[%emt 0:00:43]} Kg6 {[%emt 0:00:
16]} 39. Ra6+ {[%emt 0:00:19]} Kg7 {[%emt 0:00:06]} 40. Kh3 {[%emt 0:00:00]}
gxf4 {[%emt 0:00:00]} 41. gxf4 {[%emt 0:00:48]} Rc3+ {[%emt 0:00:40]} 42. Kg4 {
[%emt 0:01:05]} Rxa3 {[%emt 0:02:10]} 43. Ra7 {[%emt 0:00:13]} Kg8 {[%emt 0:02:
24]} 44. f5 {[%emt 0:01:09]} Ra2 {[%emt 0:03:35]} 45. f6 {[%emt 0:10:57]} h6 {
[%emt 0:00:34]} 46. Ra8+ {[%emt 0:00:35]} Kh7 {[%emt 0:00:25]} 47. e6 {[%emt 0:
00:05]} Kg6 {[%emt 0:02:21]} 48. e7 {[%emt 0:00:09]} 1-0